bitfinex/quotes_SOLUSD_20220118
["timestamp","ask_amount","ask_price","bid_price","bid_amount"]
[1642511055806,2.914,137.3,137.23,0.25]
[1642511056518,10.9297,137.28,137.23,0.25]
[1642511056808,40.8656321,137.27,137.23,0.25]
[1642511057607,51.7959321,137.27,137.23,0.25]
[1642511057807,51.7959321,137.27,137.2,6.0]
[1642511058007,51.7959321,137.27,137.23,0.25]
[1642511059113,51.7959321,137.27,137.21,0.25]
[1642511059517,57.6129321,137.27,137.21,0.25]
[1642511059713,130.7829321,137.27,137.2,0.25]
[1642511059913,2.914,137.26,137.2,0.25]
[1642511060252,2.914,137.26,137.18,3.164]
[1642511060253,10.9338,137.25,137.18,3.164]
[1642511060419,43.95214148,137.24,137.18,3.164]
[1642511061216,10.9338,137.23,137.18,2.915]
[1642511061514,76.085,137.22,137.14,4.14652605]
[1642511061713,77.87405272,137.22,137.14,4.14652605]
[1642511061915,6.0,137.21,137.14,4.14652605]
[1642511062116,41.89204376,137.2,137.14,4.14652605]
[1642511062514,41.89204376,137.2,137.15,0.25]
[1642511062915,52.82974376,137.2,137.15,0.25]
[1642511063213,52.82974376,137.2,137.14,0.25]
[1642511064314,52.82974376,137.2,137.13,2.915]
[1642511064617,59.94174376,137.2,137.13,2.915]
[1642511064813,59.94174376,137.2,137.1,7.06252605]
[1642511064814,2.916,137.19,137.1,7.06252605]
[1642511065013,10.9391,137.17,137.1,7.06252605]
[1642511065214,16.5321,137.17,137.1,2.916]
[1642511065412,41.39953698,137.16,137.1,2.916]
[1642511065814,41.39953698,137.16,137.11,0.25]
[1642511066017,41.39953698,137.16,137.1,2.916]
[1642511066215,41.39953698,137.16,137.09,34.87165455]
[1642511066417,41.39953698,137.16,137.09,30.7251285]
[1642511067018,52.33903698,137.16,137.09,30.7251285]
[1642511067419,52.33903698,137.16,137.1,0.25]
[1642511070325,52.33903698,137.16,137.09,30.7251285]
[1642511071030,52.33903698,137.16,137.09,7.1961285]
[1642511071228,76.086,137.15,137.09,7.1961285]
[1642511071430,10.9422,137.14,137.09,7.1961285]
[1642511071634,48.03442075,137.13,137.09,7.1961285]
[1642511072438,48.03442075,137.13,137.1,0.25]
[1642511073438,10.9422,137.12,137.09,4.2801285]
[1642511077063,2.916,137.11,137.09,4.2801285]
[1642511077264,13.8594,137.11,137.09,4.2801285]
[1642511077566,36.57305648,137.1,137.09,4.2801285]
[1642511077864,36.57305648,137.1,137.09,4.5301285]
[1642511078264,36.57305648,137.1,137.09,4.2801285]
[1642511078464,36.57305648,137.1,137.09,4.5301285]
[1642511079669,36.57305648,137.1,137.09,4.2801285]
[1642511080168,36.57305648,137.1,137.04,4.14652605]
[1642511080169,26.0,137.09,137.04,4.14652605]
[1642511080366,29.168,137.09,137.04,4.14652605]
[1642511080973,2.918,137.09,137.04,4.14652605]
[1642511081169,13.8628,137.09,137.04,4.14652605]
[1642511081370,10.9448,137.09,137.04,4.14652605]
[1642511081567,13.8628,137.09,137.05,0.25]
[1642511081772,36.57305648,137.1,137.05,0.25]
[1642511082867,36.57305648,137.1,137.04,0.25]
[1642511083468,47.51685648,137.1,137.04,0.25]
[1642511085674,47.51685648,137.1,137.04,1.75555264]
[1642511085874,2.918,137.12,137.04,1.75555264]
[1642511086076,10.9428,137.12,137.05,6.0]
[1642511086275,2.918,137.14,137.06,0.25]
[1642511086504,2.916,137.15,137.06,26.54435264]
[1642511086675,6.0,137.13,137.06,26.54435264]
[1642511086877,45.8669263,137.13,137.06,26.80435264]
[1642511087477,45.8669263,137.13,137.06,37.74525264]
[1642511087878,45.8669263,137.13,137.06,25.0388]
[1642511088278,2.916,137.12,137.06,25.0388]
[1642511088478,2.916,137.12,137.06,0.25]
[1642511088679,10.9438,137.11,137.04,0.25]
[1642511088878,2.918,137.1,137.04,0.25]
[1642511089278,2.918,137.1,137.03,4.14652605]
[1642511089279,2.918,137.11,137.03,4.14652605]
[1642511089480,43.67309151,137.1,137.01,24.8529]
[1642511089680,2.918,137.09,137.01,24.8529]
[1642511090479,13.864,137.09,137.01,24.8529]
[1642511090679,13.864,137.09,137.02,0.25]
[1642511091079,13.864,137.09,137.02,1.75555264]
[1642511091883,10.946,137.09,137.03,2.918]
[1642511092182,10.946,137.09,137.04,0.25]
[1642511097116,10.946,137.09,137.03,4.42786697]
[1642511097314,76.338,137.08,137.0,4.14652605]
[1642511097518,10.948,137.06,137.0,4.14652605]
[1642511097715,2.919,137.05,137.0,4.14652605]
[1642511097916,48.44323325,137.04,137.0,4.14652605]
[1642511098315,48.44323325,137.04,136.99,1.6159594]
[1642511098519,48.44323325,137.04,137.0,0.25]
[1642511103019,59.39193325,137.04,137.0,0.25]
[1642511103420,59.39193325,137.04,136.99,1.6159594]
[1642511103718,59.39193325,137.04,136.99,3.12356081]
[1642511104718,48.44323325,137.04,137.0,0.25]
[1642511107221,13.8666,137.06,137.0,0.25]
[1642511107622,2.919,137.06,137.0,1.75760141]
[1642511107822,2.919,137.06,137.01,10.48]
[1642511108022,1.53802454,137.08,137.01,13.399]
[1642511108222,38.48550012,137.07,137.02,0.25]
[1642511109025,1.53802454,137.08,137.02,1.75760141]
[1642511109223,1.53802454,137.08,137.02,24.55870141]
[1642511109423,1.53802454,137.08,137.02,23.0511]
[1642511110123,1.53802454,137.08,137.03,2.07573379]
[1642511110325,44.44097742,137.08,137.04,0.25]
[1642511110724,1.53802454,137.08,137.04,0.25]
[1642511111323,29.62126821,137.12,137.04,1.75760141]
[1642511111528,26.70326821,137.12,137.04,24.93070141]
[1642511111723,73.38788856,137.12,137.04,24.93070141]
[1642511111924,73.38788856,137.12,137.04,46.35320141]
[1642511112126,71.43222035,137.12,137.04,48.4289352]
[1642511112725,46.68462035,137.12,137.04,48.4289352]
[1642511113327,46.68462035,137.12,137.05,2.07573379]
[1642511113533,46.68462035,137.12,137.05,15.93553379]
[1642511113731,46.68462035,137.12,137.06,0.25]
[1642511113928,87.0301,137.13,137.06,0.25]
[1642511114127,13.8601,137.13,137.06,0.25]
[1642511114328,2.918,137.13,137.06,0.25]
[1642511114928,40.30926823,137.13,137.06,0.25]
[1642511115129,37.39126823,137.13,137.06,11.191]
[1642511115329,37.39126823,137.13,137.06,13.52673379]
[1642511116432,48.33276823,137.13,137.06,2.32573379]
[1642511116631,3.166,137.12,137.06,2.32573379]
[1642511116832,76.336,137.12,137.06,2.32573379]
[1642511117331,76.336,137.12,137.06,0.25]
[1642511118131,45.08217491,137.1,137.06,0.25]
[1642511118332,48.00017491,137.1,137.05,2.918]
[1642511118733,45.08217491,137.1,137.05,2.918]
[1642511119432,56.02627491,137.1,137.05,2.918]
[1642511119630,56.02627491,137.1,137.06,0.25]
[1642511120031,56.02627491,137.1,137.05,0.25]
[1642511120231,56.02627491,137.1,137.04,0.25]
[1642511120631,129.19627491,137.1,137.04,0.25]
[1642511121833,0.25,137.09,137.04,0.25]
[1642511122035,13.8655,137.08,137.04,0.25]
[1642511122237,44.6742807,137.07,137.04,0.25]
[1642511123233,44.6742807,137.07,137.01,2.32573379]
[1642511123435,10.9475,137.06,137.01,2.32573379]
[1642511126441,10.9475,137.06,137.01,0.25]
[1642511130140,84.1175,137.06,137.01,0.25]
[1642511131347,87.0355,137.06,137.01,0.25]
[1642511132044,13.8655,137.06,137.01,0.25]
[1642511133145,87.0355,137.06,137.01,0.25]
[1642511133545,13.8655,137.06,137.01,0.25]
[1642511138277,87.0355,137.06,137.01,0.25]
[1642511138479,13.8655,137.06,137.01,0.25]
[1642511139977,10.9475,137.06,137.01,0.25]
[1642511142379,10.9475,137.06,137.01,6.25]
[1642511142580,10.9475,137.06,137.01,0.25]
[1642511146585,10.9475,137.06,137.0,1.6159594]
[1642511148085,10.9475,137.06,137.01,0.25]
[1642511152889,45.2388452,137.04,137.01,0.25]
[1642511153891,76.088,137.07,137.02,6.06439994]
[1642511154293,76.088,137.07,137.03,0.25]
[1642511154491,2.918,137.07,137.03,0.25]
[1642511154692,10.947,137.06,137.03,0.25]
[1642511154993,59.8792181,137.06,137.03,0.25]
[1642511155192,59.8792181,137.06,137.01,0.25]
[1642511161299,59.8792181,137.06,137.01,3.168]
[1642511162705,59.8792181,137.06,137.01,2.918]
[1642511162903,66.5412181,137.06,137.0,3.69169319]
[1642511163204,10.9499,137.04,137.0,3.69169319]
[1642511163602,40.40196102,137.03,137.0,3.69169319]
[1642511164103,40.40196102,137.03,137.0,1.6159594]
[1642511164302,40.40196102,137.03,137.01,0.25]
[1642511165103,13.8674,137.05,137.01,0.25]
[1642511165305,10.9484,137.05,137.01,0.25]
[1642511166107,44.44227555,137.04,137.01,0.25]
[1642511168408,55.39107555,137.04,137.01,0.25]
[1642511169938,55.39107555,137.04,137.02,3.03219997]
[1642511170341,55.39107555,137.04,137.03,0.25]
[1642511170540,55.39107555,137.04,137.01,0.25]
[1642511171541,2.919,137.03,137.0,3.69169319]
[1642511171741,10.9505,137.02,137.0,3.69169319]
[1642511172342,37.63857522,137.01,137.0,3.69169319]
[1642511172544,37.63857522,137.01,137.0,1.6159594]
[1642511172744,48.58977522,137.01,137.0,1.6159594]
[1642511173045,58.14777522,137.01,136.98,2.07573379]
[1642511173243,55.22877522,137.01,136.98,2.07573379]
[1642511173743,55.22877522,137.01,136.96,23.0064]
[1642511173744,55.22877522,137.01,136.96,25.08213379]
[1642511174545,55.22877522,137.01,136.95,2.07573379]
[1642511174747,3.17,137.0,136.95,2.07573379]
[1642511174945,10.9544,136.99,136.95,2.07573379]
[1642511175146,2.92,136.98,136.95,2.07573379]
[1642511175346,43.43014988,136.97,136.95,2.07573379]
[1642511175746,43.43014988,136.97,136.93,2.07573379]
[1642511175947,43.43014988,136.97,136.93,2.32573379]
[1642511176148,43.43014988,136.97,136.94,6.0]
[1642511176349,54.38454988,136.97,136.94,6.0]
[1642511178551,54.38454988,136.97,136.93,6.0]
[1642511178755,54.38454988,136.97,136.93,6.25]
[1642511183055,127.55454988,136.97,136.93,6.25]
[1642511183853,127.55454988,136.97,136.92,2.07573379]
[1642511184053,10.9581,136.94,136.89,4.14652605]
[1642511184252,10.9581,136.94,136.91,2.07630893]
[1642511184253,2.92,136.93,136.91,2.07630893]
[1642511184452,2.92,136.93,136.85,30.49336642]
[1642511184453,9.17,136.93,136.88,4.14652605]
[1642511184853,41.56571454,136.92,136.88,4.14652605]
[1642511185053,8.92,136.91,136.88,4.14652605]
[1642511185852,8.92,136.91,136.85,5.05206642]
[1642511186054,8.92,136.91,136.86,0.25]
[1642511186454,10.9614,136.9,136.84,22.8463]
[1642511186653,37.31735993,136.89,136.85,6.0]
[1642511188257,48.27825993,136.89,136.85,6.0]
[1642511188655,51.20025993,136.89,136.83,6.0]
[1642511189257,51.20025993,136.89,136.82,2.92]
[1642511189457,51.20025993,136.89,136.81,7.06852605]
[1642511189657,6.25,136.88,136.8,4.14652605]
[1642511189859,10.9658,136.86,136.8,4.14652605]
[1642511190059,18.9778,136.86,136.8,4.14652605]
[1642511190458,47.53908872,136.85,136.8,4.14652605]
[1642511190762,47.53908872,136.85,136.79,4.15539557]
[1642511190958,47.53908872,136.85,136.79,10.40539557]
[1642511191361,120.70908872,136.85,136.79,10.40539557]
[1642511191566,10.9662,136.84,136.79,10.40539557]
[1642511191765,10.9662,136.84,136.79,10.15539557]
[1642511192767,13.8892,136.84,136.79,6.0]
[1642511193167,13.8892,136.84,136.8,0.25]
[1642511193472,10.9662,136.84,136.8,0.25]
[1642511196171,10.9662,136.84,136.79,6.0]
[1642511197773,10.9662,136.84,136.8,0.25]
[1642511204481,37.73020021,136.88,136.8,0.25]
[1642511204482,10.9636,136.86,136.8,0.25]
[1642511204683,10.9636,136.86,136.8,22.9575]
[1642511205582,50.83317994,136.86,136.8,22.9575]
[1642511205784,50.83317994,136.86,136.8,25.8805]
[1642511208786,53.75617994,136.86,136.8,22.9575]
[1642511209184,53.75617994,136.86,136.79,8.923]
[1642511209584,0.25,136.85,136.79,8.923]
[1642511209785,13.8901,136.84,136.79,6.0]
[1642511210418,43.20591953,136.83,136.79,6.0]
[1642511210613,43.20591953,136.83,136.8,0.25]
[1642511211416,10.9673,136.82,136.8,0.25]
[1642511212617,17.6943,136.82,136.76,7.06952605]
[1642511213119,2.924,136.81,136.76,7.06952605]
[1642511213317,10.9699,136.8,136.76,7.06952605]
[1642511213523,43.18609915,136.79,136.76,7.06952605]
[1642511213722,49.25109915,136.79,136.76,7.06952605]
[1642511214319,49.25109915,136.79,136.76,2.923]
[1642511214520,49.25109915,136.79,136.74,4.14652605]
[1642511214721,49.25109915,136.79,136.75,0.25]
[1642511215522,10.9701,136.78,136.75,0.25]
[1642511217122,10.9701,136.78,136.74,6.25]
[1642511217323,10.9701,136.78,136.74,6.0]
[1642511217724,10.9701,136.78,136.74,10.14652605]
[1642511217923,10.9701,136.78,136.74,4.14652605]
[1642511218525,6.0,136.77,136.73,2.924]
[1642511218722,10.9726,136.76,136.73,2.924]
[1642511219825,45.86045482,136.76,136.73,2.924]
[1642511220625,10.9726,136.76,136.74,0.25]
[1642511221126,10.9726,136.76,136.73,0.25]
[1642511222129,2.924,136.78,136.73,0.25]
[1642511222328,39.4895,136.82,136.74,2.924]
[1642511222727,39.4895,136.82,136.75,0.25]
[1642511222929,45.41515428,136.81,136.75,0.25]
[1642511223530,10.9685,136.8,136.75,0.25]
[1642511228532,13.8911,136.82,136.75,0.25]
[1642511228733,2.924,136.84,136.75,0.25]
[1642511228933,2.924,136.84,136.75,6.25]
[1642511228934,6.0,136.84,136.75,6.25]
[1642511229136,6.0,136.85,136.75,6.25]
[1642511229335,6.0,136.85,136.76,24.0312]
[1642511229539,48.79929182,136.84,136.76,24.0312]
[1642511229737,48.79929182,136.84,136.77,3.173]
[1642511229937,6.0,136.83,136.77,3.173]
[1642511230335,48.79929182,136.84,136.77,3.173]
[1642511230538,6.0,136.83,136.77,14.1373]
[1642511230738,48.79929182,136.84,136.77,14.1373]
[1642511230937,2.923,136.87,136.77,14.3973]
[1642511231240,1.18310021,136.88,136.78,89.65]
[1642511231438,1.18310021,136.88,136.79,2.923]
[1642511231639,1.18310021,136.88,136.8,6.0]
[1642511231838,1.18310021,136.88,136.81,2.923]
[1642511231839,42.01052826,136.87,136.81,2.923]
[1642511232139,42.01052826,136.87,136.81,3.173]
[1642511233942,52.97292826,136.87,136.81,3.173]
[1642511234441,52.97292826,136.87,136.81,0.25]
[1642511236350,42.01052826,136.87,136.81,0.25]
[1642511237169,42.01052826,136.87,136.81,6.25]
[1642511237575,52.97312826,136.87,136.81,6.25]
[1642511239474,52.97312826,136.87,136.81,0.25]
[1642511243681,52.97312826,136.87,136.8,2.923]
[1642511243682,3.173,136.86,136.8,2.923]
[1642511243885,10.9665,136.84,136.77,4.14652605]
[1642511244082,2.923,136.83,136.77,4.14652605]
[1642511244282,0.25,136.83,136.78,0.25]
[1642511244483,2.923,136.82,136.78,0.25]
[1642511244682,41.38395186,136.81,136.78,0.25]
[1642511244884,2.924,136.8,136.78,0.25]
[1642511245286,10.9681,136.8,136.74,0.25]
[1642511246784,13.8921,136.8,136.74,0.25]
[1642511247816,13.8921,136.8,136.73,6.25]
[1642511249286,2.924,136.8,136.73,6.51]
[1642511250187,41.38395186,136.81,136.74,2.924]
[1642511250491,52.35135186,136.81,136.74,2.924]
[1642511250687,52.35135186,136.81,136.75,0.25]
[1642511250887,52.35135186,136.81,136.74,2.174]
[1642511251486,41.38395186,136.81,136.74,2.174]
[1642511251686,41.38395186,136.81,136.74,13.141]
[1642511252286,41.38395186,136.81,136.75,0.25]
[1642511252892,52.35125186,136.81,136.75,0.25]
[1642511254887,41.38395186,136.81,136.75,0.25]
[1642511255087,13.8903,136.83,136.75,0.25]
[1642511255488,13.8903,136.83,136.75,11.2161]
[1642511255891,13.8903,136.83,136.75,0.25]
[1642511256090,45.94127926,136.82,136.75,0.25]
[1642511256290,56.90837926,136.82,136.75,0.25]
[1642511257892,10.9671,136.82,136.75,36.73774414]
[1642511258097,2.924,136.83,136.75,53.70374414]
[1642511258294,2.924,136.85,136.75,64.44374414]
[1642511258493,2.924,136.85,136.76,23.5357]
[1642511258694,2.924,136.85,136.77,0.25]
[1642511258893,40.86149851,136.84,136.77,0.25]
[1642511259192,40.86149851,136.84,136.78,10.9634]
[1642511259594,40.86149851,136.84,136.79,0.25]
[1642511261997,40.86149851,136.84,136.79,11.2128]
[1642511262195,40.86149851,136.84,136.79,11.4728]
[1642511265122,10.9633,136.86,136.79,11.4728]
[1642511265320,10.9633,136.86,136.79,11.2128]
[1642511265521,10.9633,136.86,136.79,14.1358]
[1642511266125,41.74579624,136.85,136.79,14.1358]
[1642511267524,41.74579624,136.85,136.8,6.0]
[1642511267723,41.74579624,136.85,136.81,0.25]
[1642511269227,13.8854,136.87,136.81,0.25]
[1642511269429,2.923,136.87,136.81,0.25]
[1642511270431,2.923,136.87,136.81,32.14905077]
[1642511270629,1.18310021,136.88,136.82,6.0]
[1642511271033,2.922,136.87,136.82,6.0]
[1642511271536,2.922,136.87,136.83,0.25]
[1642511271732,36.54415951,136.86,136.83,0.25]
[1642511272533,36.54415951,136.86,136.82,0.25]
[1642511273136,36.54415951,136.86,136.81,6.0]
[1642511274336,36.54415951,136.86,136.8,6.0]
[1642511274537,47.50755951,136.86,136.8,6.25]
[1642511274939,47.50755951,136.86,136.8,0.25]
[1642511279740,47.50755951,136.86,136.78,6.51]
[1642511281443,47.50755951,136.86,136.78,0.26]
[1642511281641,47.50755951,136.86,136.77,26.0182]
[1642511281642,10.9649,136.84,136.77,26.0182]
[1642511281845,10.9649,136.84,136.77,23.0952]
[1642511282042,6.25,136.83,136.76,10.9647]
[1642511282245,9.173,136.83,136.76,10.9647]
[1642511282443,37.67466224,136.82,136.76,10.9647]
[1642511282642,48.64086224,136.82,136.74,38.6424]
[1642511282843,48.64086224,136.82,136.74,13.889]
[1642511283042,48.64086224,136.82,136.72,4.14652605]
[1642511283043,9.174,136.81,136.72,4.14652605]
[1642511283342,73.17,136.8,136.72,4.14652605]
[1642511283542,8.924,136.79,136.72,4.14652605]
[1642511283742,8.924,136.79,136.68,7.07052605]
[1642511283743,40.24336689,136.78,136.68,7.07052605]
[1642511283942,2.924,136.77,136.68,7.07052605]
[1642511284143,10.974,136.75,136.68,7.07052605]
[1642511284346,13.898,136.75,136.68,7.07052605]
[1642511284543,13.898,136.75,136.68,2.924]
[1642511284943,38.7621463,136.74,136.68,2.924]
[1642511285345,10.974,136.73,136.68,2.924]
[1642511285545,2.926,136.72,136.66,2.926]
[1642511285744,0.25,136.71,136.66,2.926]
[1642511285959,2.926,136.7,136.66,2.926]
[1642511286356,43.18978209,136.69,136.66,2.926]
[1642511286559,2.926,136.68,136.66,2.926]
[1642511286756,43.18978209,136.69,136.66,2.926]
[1642511287559,54.16738209,136.69,136.66,2.926]
[1642511291581,54.16738209,136.69,136.61,7.07252605]
[1642511291780,54.16738209,136.69,136.62,6.25]
[1642511292184,54.16738209,136.69,136.61,7.07252605]
[1642511292383,2.927,136.68,136.61,4.14652605]
[1642511292586,10.9799,136.66,136.59,2.927]
[1642511293184,46.50811369,136.65,136.59,2.927]
[1642511293384,46.50811369,136.65,136.57,2.927]
[1642511294086,46.50811369,136.65,136.58,0.25]
[1642511294487,10.9809,136.64,136.57,2.927]
[1642511294690,13.9089,136.64,136.57,2.927]
[1642511295688,13.9089,136.64,136.58,0.25]
[1642511295887,10.9809,136.64,136.58,0.25]
[1642511297088,13.9089,136.64,136.58,0.25]
[1642511297293,13.9089,136.64,136.57,0.25]
[1642511297689,13.9089,136.64,136.56,13.408]
[1642511297894,13.9089,136.64,136.56,2.928]
[1642511298788,0.25,136.63,136.56,2.928]
[1642511298990,58.35270269,136.61,136.56,2.928]
[1642511300290,67.01670269,136.61,136.56,2.928]
[1642511300491,67.01670269,136.61,136.57,0.25]
[1642511300897,67.01670269,136.61,136.54,9.178]
[1642511301395,67.01670269,136.61,136.54,8.928]
[1642511301594,67.01670269,136.61,136.54,2.928]
[1642511301795,0.25,136.6,136.53,2.0]
[1642511301996,10.9859,136.59,136.53,2.0]
[1642511302193,2.928,136.58,136.53,2.0]
[1642511302396,37.4190854,136.57,136.53,2.0]
[1642511303197,37.4190854,136.57,136.54,0.25]
[1642511303694,48.4057854,136.57,136.53,2.0]
[1642511305999,48.4057854,136.57,136.54,0.25]
[1642511306602,10.9867,136.57,136.54,0.25]
[1642511306799,13.9134,136.59,136.54,0.25]
[1642511306999,10.9854,136.59,136.54,0.25]
[1642511307603,50.53607254,136.59,136.54,0.25]
[1642511308002,50.53607254,136.59,136.54,3.178]
[1642511308701,39.55067254,136.59,136.54,3.178]
[1642511308901,2.928,136.62,136.54,3.178]
[1642511309101,2.928,136.63,136.55,2.04268935]
[1642511309301,2.928,136.63,136.56,0.25]
[1642511309803,2.928,136.63,136.56,2.29268935]
[1642511310105,38.19283371,136.62,136.56,2.29268935]
[1642511310501,49.17563371,136.62,136.56,2.29268935]
[1642511311602,49.17563371,136.62,136.57,2.04268935]
[1642511311805,49.17563371,136.62,136.58,0.25]
[1642511316706,38.19283371,136.62,136.58,0.25]
[1642511317309,2.928,136.63,136.59,2.928]
[1642511317709,2.928,136.63,136.6,0.25]
[1642511318107,2.928,136.63,136.61,6.06439994]
[1642511318310,2.928,136.63,136.62,0.25]
[1642511322212,38.58968026,136.65,136.61,8.10708929]
[1642511322413,38.58968026,136.65,136.61,5.07488932]
[1642511322612,38.58968026,136.65,136.62,0.25]
[1642511322834,10.9783,136.67,136.62,0.25]
[1642511323735,45.39324935,136.66,136.62,0.25]
[1642511325237,56.37234935,136.66,136.62,0.25]
[1642511332647,45.39324935,136.66,136.62,0.25]
[1642511335651,45.39324935,136.66,136.62,6.25]
[1642511335852,45.39324935,136.66,136.62,0.25]
[1642511336451,56.37244935,136.66,136.62,0.25]
[1642511338754,45.39324935,136.66,136.62,0.25]
[1642511340854,10.9782,136.67,136.62,0.25]
[1642511341057,2.927,136.68,136.62,0.25]
[1642511341256,4.72636437,136.7,136.63,2.927]
[1642511341455,1.79936437,136.7,136.63,2.927]
[1642511341658,1.79936437,136.7,136.64,0.25]
[1642511341859,42.2622863,136.69,136.64,0.25]
[1642511347563,2.927,136.71,136.64,6.25]
[1642511347770,1.79936437,136.72,136.65,2.926]
[1642511348168,1.79936437,136.72,136.66,0.25]
[1642511348466,1.79936437,136.72,136.68,10.97]
[1642511348668,1.79936437,136.72,136.69,2.926]
[1642511348967,1.79936437,136.72,136.69,0.25]
[1642511349168,38.85994157,136.75,136.7,6.06439994]
[1642511349468,38.85994157,136.75,136.7,8.98839994]
[1642511349666,38.85994157,136.75,136.71,0.25]
[1642511349866,1.79936437,136.75,136.71,0.25]
[1642511350666,1.79936437,136.75,136.71,14.32]
[1642511350867,1.79936437,136.77,136.71,27.58917007]
[1642511351072,1.79936437,136.77,136.72,2.924]
[1642511351271,1.79936437,136.77,136.73,11.2167]
[1642511351469,1.79936437,136.77,136.73,17.2167]
[1642511351668,1.79936437,136.77,136.73,17.4767]
[1642511352071,46.32504833,136.79,136.73,17.4767]
[1642511352674,2.924,136.78,136.71,2.04268935]
[1642511353773,2.924,136.78,136.72,0.25]
[1642511354374,1.79936437,136.76,136.69,22.8175]
[1642511354674,2.924,136.75,136.69,22.8175]
[1642511354874,1.79936437,136.76,136.7,6.0]
[1642511355274,1.79936437,136.76,136.69,22.8175]
[1642511355479,1.79936437,136.76,136.7,8.924]
[1642511355777,1.79936437,136.76,136.71,0.25]
[1642511356611,1.79936437,136.76,136.71,11.2191]
[1642511357100,12.76876437,136.78,136.71,11.2191]
[1642511357301,1.79936437,136.78,136.71,11.2191]
[1642511357500,1.79936437,136.78,136.71,11.4791]
[1642511357700,1.79936437,136.78,136.72,6.0]
[1642511358102,1.79936437,136.78,136.73,0.25]
[1642511358300,2.924,136.78,136.73,0.25]
[1642511358901,59.0930127,136.79,136.73,0.25]
[1642511359204,59.0930127,136.79,136.72,0.25]
[1642511359404,2.924,136.78,136.72,0.25]
[1642511359607,10.9711,136.77,136.72,0.25]
[1642511359802,10.9711,136.77,136.71,0.51]
[1642511360005,10.9711,136.77,136.71,0.25]
[1642511360605,4.72336437,136.78,136.71,0.25]
[1642511361003,4.72336437,136.78,136.71,6.25]
[1642511361205,4.72336437,136.78,136.71,6.51]
[1642511362204,1.79936437,136.78,136.71,6.51]
[1642511362610,59.0937127,136.79,136.71,17.479]
[1642511363505,1.79936437,136.78,136.71,17.479]
[1642511363706,1.79936437,136.78,136.72,2.924]
[1642511363909,1.79936437,136.78,136.72,13.892]
[1642511364106,1.79936437,136.78,136.73,0.25]
[1642511367812,1.79936437,136.78,136.7,25.10088935]
[1642511367813,2.924,136.77,136.7,2.04268935]
[1642511368017,6.0,136.76,136.7,2.04268935]
[1642511368214,13.654,136.75,136.64,5.05206642]
[1642511368419,19.816,136.75,136.64,5.05206642]
[1642511368613,7.78905272,136.74,136.64,5.05206642]
[1642511368813,3.176,136.73,136.64,5.05206642]
[1642511369114,41.69727469,136.71,136.63,4.14652605]
[1642511369313,2.926,136.7,136.65,6.0]
[1642511369513,2.926,136.7,136.64,6.0]
[1642511369713,2.926,136.7,136.65,0.25]
[1642511370416,13.9019,136.7,136.64,6.0]
[1642511370617,13.9019,136.7,136.61,7.07052605]
[1642511371018,6.0,136.69,136.61,7.07052605]
[1642511371218,2.927,136.68,136.61,7.07052605]
[1642511371416,10.9804,136.66,136.61,7.07052605]
[1642511371621,46.36198694,136.64,136.59,4.14652605]
[1642511372215,46.36198694,136.64,136.6,0.25]
[1642511372815,10.9802,136.65,136.6,0.25]
[1642511373016,10.9802,136.65,136.58,6.25]
[1642511373214,2.927,136.67,136.59,2.927]
[1642511373619,2.927,136.67,136.6,0.25]
[1642511373819,38.55027277,136.66,136.6,0.25]
[1642511374421,49.52947277,136.66,136.6,0.25]
[1642511374622,10.9792,136.66,136.6,0.25]